bitfinex-derivatives/quotes_ETHF0:USTF0_20250530
["timestamp","ask_amount","ask_price","bid_price","bid_amount"]
[1748630439899,0.77714,2573.0,2572.9,6.20996]
[1748630440194,3.28770456,2573.4,2572.8,3.2078]
[1748630440195,0.77717,2572.9,2572.8,3.2078]
[1748630441197,1.94296,2572.9,2572.5,3.2078]
[1748630441400,0.77726,2572.6,2572.5,3.2078]
[1748630442211,0.77726,2572.6,2572.5,3.98509]
[1748630442503,0.77726,2572.6,2572.5,3.2078]
[1748630442701,2.1401,2572.8,2572.5,3.2078]
[1748630443003,0.77726,2572.6,2572.5,3.2078]
[1748630443204,0.77726,2572.6,2572.5,3.98509]
[1748630443605,2.1401,2572.8,2572.5,3.98509]
[1748630444005,0.77726,2572.6,2572.5,3.98509]
[1748630444606,0.77726,2572.7,2572.6,0.77726]
[1748630445201,0.77713,2573.1,2573.0,0.77713]
[1748630445394,3.21362456,2573.4,2572.7,1.94308]
[1748630445601,0.77709,2573.2,2572.8,2.8064]
[1748630445897,0.77706,2573.3,2573.2,0.77705]
[1748630446702,0.78286456,2573.4,2573.3,0.77705]
[1748630447106,0.78287456,2573.4,2573.3,0.77705]
[1748630447510,0.77708,2573.2,2573.1,3.2078]
[1748630448909,0.77708,2573.2,2573.1,3.98491]
[1748630449604,2.1242,2573.3,2573.2,0.77708]
[1748630449813,0.00582456,2573.4,2573.3,0.77705]
[1748630450009,0.78284456,2573.4,2573.3,0.77705]
[1748630450407,0.00582456,2573.4,2573.3,0.77705]
[1748630450606,0.78284456,2573.4,2573.3,1.57555]
[1748630452210,0.77708,2573.2,2573.1,3.98489]
[1748630452508,0.77708,2573.2,2573.1,3.2078]
[1748630452814,0.77714,2573.0,2572.9,2.87647]
[1748630453215,2.05244,2573.1,2573.0,0.77714]
[1748630453513,0.77714,2573.0,2572.9,2.87645]
[1748630455217,0.77717,2572.9,2572.8,3.2078]
[1748630455812,0.77717,2572.9,2572.8,3.985]
[1748630458719,0.77716,2573.0,2572.9,0.77714]
[1748630460119,0.77717,2572.9,2572.8,3.2078]
[1748630460414,0.77726,2572.6,2572.5,3.2078]
[1748630460620,0.77735,2572.3,2572.2,3.2078]
[1748630462325,0.77735,2572.3,2572.2,3.98518]
[1748630462521,0.77735,2572.3,2572.2,3.2078]
[1748630463236,0.77735,2572.3,2572.2,3.98518]
[1748630463434,0.77734,2572.4,2572.3,0.77732]
[1748630463734,0.77735,2572.3,2572.2,3.98516]
[1748630464233,0.77745,2572.0,2571.9,3.21362456]
[1748630464436,1.94332,2572.4,2571.9,3.21362456]
[1748630464730,0.77745,2572.0,2571.9,3.99108456]
[1748630465638,0.77744,2572.1,2572.0,0.77743]
[1748630466126,9.3189,2572.7,2572.1,1.94353]
[1748630466332,0.77732,2572.5,2572.4,0.7773]
[1748630466534,0.77737,2572.3,2572.2,0.77736]
[1748630467229,0.77735,2572.4,2572.3,0.77732]
[1748630467731,0.77739,2572.3,2572.2,0.77736]
[1748630468435,0.77742,2572.2,2572.1,0.77739]
[1748630469030,0.77745,2572.0,2571.9,3.99106456]
[1748630469631,1.94344,2572.3,2571.9,3.21362456]
[1748630469838,0.77743,2572.1,2572.0,0.77741]
[1748630471041,1.94341,2572.3,2571.9,3.21362456]
[1748630471042,0.77745,2572.0,2571.9,3.21362456]
[1748630474538,1.94341,2572.3,2571.9,3.21362456]
[1748630474740,0.77745,2572.1,2572.0,0.77742]
[1748630475535,0.77745,2572.0,2571.9,3.21362456]
[1748630475737,0.77745,2572.0,2571.9,0.00582456]
[1748630479535,0.77743,2572.1,2571.9,3.21362456]
[1748630479844,0.77743,2572.1,2572.0,0.7774]
[1748630480037,0.77745,2572.0,2571.9,3.21362456]
[1748630481244,2.07845,2572.0,2571.9,3.21362456]
[1748630481743,2.07845,2572.0,2571.9,3.99110456]
[1748630482144,1.301,2572.0,2571.9,3.99110456]
[1748630482742,0.77727,2572.7,2572.6,0.77723]
[1748630482933,0.77723,2572.8,2572.7,0.7772]
[1748630483251,0.77726,2572.6,2572.5,3.98506]
[1748630485942,0.77727,2572.7,2572.6,0.77724]
[1748630486242,0.77727,2572.6,2572.5,3.98508]
[1748630486443,2.08447,2572.6,2572.5,3.98508]
[1748630488851,1.3072,2572.6,2572.5,3.98508]
[1748630489350,2.08447,2572.6,2572.5,3.98508]
[1748630489651,1.3072,2572.6,2572.5,3.98508]
[1748630489842,2.08447,2572.6,2572.5,3.98508]
[1748630491643,1.3072,2572.6,2572.5,3.98508]
[1748630491945,0.77715,2573.1,2573.0,0.77712]
[1748630492248,0.77721,2572.9,2572.8,0.77718]
[1748630492447,0.77721,2572.9,2572.8,3.98498]
[1748630493243,0.77721,2572.9,2572.8,3.2078]
[1748630493834,2.09751,2572.9,2572.8,3.2078]
[1748630494344,2.09751,2572.9,2572.8,3.985]
[1748630494649,1.3203,2572.9,2572.8,3.985]
[1748630495749,0.77723,2572.8,2572.5,7.3658]
[1748630495950,2.02956,2572.7,2572.5,8.14308]
[1748630496150,1.2523,2572.7,2572.6,0.77727]
[1748630502949,1.2523,2572.7,2572.6,3.98507]
[1748630507350,1.4466,2572.7,2572.6,3.98507]
[1748630507556,0.1943,2572.7,2572.6,3.98507]
[1748630508056,0.1943,2572.7,2572.6,5.32627]
[1748630508257,0.1943,2572.7,2572.6,6.10197]
[1748630512956,0.8093,2573.3,2572.6,5.3247]
[1748630513162,0.00582456,2573.4,2573.3,0.77705]
[1748630513355,0.00582456,2573.4,2573.3,3.98485]
[1748630513559,0.00582456,2573.4,2573.3,5.28155]
[1748630518065,0.78284456,2573.4,2573.3,3.98485]
[1748630518461,0.00582456,2573.4,2573.3,3.98485]
[1748630518767,1.23672456,2573.4,2573.3,3.98485]
[1748630519061,2.01374456,2573.4,2573.3,3.98485]
[1748630519665,1.23672456,2573.4,2573.3,3.98485]
[1748630520767,2.01374456,2573.4,2573.3,3.98485]
[1748630521268,0.77711,2573.1,2573.0,3.2078]
[1748630521467,0.77711,2573.1,2573.0,3.98494]
[1748630521971,2.1139,2573.2,2573.1,0.77711]
[1748630522176,0.8149,2573.3,2573.2,0.77708]
[1748630522566,2.11964456,2573.4,2573.3,0.77705]
[1748630523376,2.11964456,2573.4,2573.3,3.98485]
[1748630523874,1.34262456,2573.4,2573.3,3.98485]
[1748630524378,0.00582456,2573.4,2573.3,3.98485]
[1748630524974,0.00582456,2573.4,2573.3,4.78115]
[1748630525877,4.56e-06,2573.4,2573.3,4.78115]
[1748630526071,4.56e-06,2573.4,2573.3,10.17518525]
[1748630526880,4.56e-06,2573.4,2573.3,4.78115]
[1748630527067,0.77702456,2573.4,2573.3,3.2078]
[1748630527375,5.77702456,2573.4,2573.3,3.2078]
[1748630527679,5.00000456,2573.4,2573.3,3.98485]
[1748630527973,5.77702456,2573.4,2573.3,3.98485]
[1748630528280,6.26370456,2573.4,2573.3,3.98485]
[1748630528783,1.26370456,2573.4,2573.3,3.98485]
[1748630534182,4.56e-06,2573.4,2573.3,3.98485]
[1748630534480,0.77684,2574.1,2574.0,0.77681]
[1748630534680,0.7769,2573.9,2573.8,0.77686]
[1748630535278,0.77686,2574.0,2573.9,0.77684]
[1748630535587,0.77684,2574.0,2573.9,0.77684]
[1748630537081,0.7769,2573.9,2573.8,0.77688]
[1748630538176,0.7769,2573.8,2573.7,3.98471]
[1748630542677,2.68866456,2574.1,2573.7,3.98471]
[1748630542678,0.74662456,2574.1,2573.7,3.2078]
[1748630542880,0.74662456,2574.1,2574.0,0.77684]
[1748630543179,1.52343456,2574.1,2574.0,0.77684]
[1748630543489,0.77687,2574.0,2573.9,0.77686]
[1748630543675,0.77687,2574.0,2573.7,4.462]
[1748630543676,0.7769,2573.8,2573.7,3.2078]
[1748630543982,0.77693,2573.7,2573.6,0.78278456]
[1748630544183,1.50363,2573.7,2573.6,0.78278456]
[1748630544578,1.50363,2573.7,2573.6,0.00582456]
[1748630544779,1.50363,2573.7,2573.6,0.78278456]
[1748630544980,1.50363,2573.7,2573.6,0.00582456]
[1748630548577,0.74662456,2574.1,2573.6,0.00582456]
[1748630548784,1.56926,2574.0,2573.9,0.77687]
[1748630548974,0.7924,2574.0,2573.9,0.77687]
[1748630549174,0.74662456,2574.1,2574.0,0.77684]
[1748630550690,1.52345456,2574.1,2574.0,0.77684]
[1748630550889,0.77687,2574.0,2573.9,0.77685]
[1748630553488,0.7769,2573.8,2573.7,3.2078]
[1748630553885,0.7769,2573.8,2573.7,3.98473]
[1748630554091,2.0717,2573.8,2573.7,3.98473]
[1748630554291,1.54118,2573.9,2573.8,0.7769]
[1748630554490,1.54118,2573.9,2573.8,1.5299]
[1748630555492,1.54118,2573.9,2573.8,0.753]
[1748630556394,0.7769,2573.8,2573.7,3.2078]
[1748630556589,0.7769,2573.8,2573.7,3.98473]
[1748630556994,2.0532,2573.8,2573.7,3.98473]
[1748630557393,1.54118,2573.9,2573.8,0.7769]
[1748630557594,0.77688,2573.9,2573.8,0.7769]
[1748630557793,2.79978456,2574.1,2574.0,0.77684]
[1748630558295,0.77689,2574.0,2573.9,0.77685]
[1748630559191,3.96498456,2574.1,2573.7,3.2078]
[1748630559397,0.7769,2573.8,2573.7,3.2078]
[1748630559890,1.4971,2573.8,2573.7,3.2078]
[1748630561295,0.77693,2573.7,2573.6,0.00582456]
[1748630561494,2.06943,2573.7,2573.6,0.00582456]
[1748630561685,2.85383,2573.7,2573.6,0.00582456]
[1748630562597,2.06943,2573.7,2573.6,0.78278456]
[1748630562797,0.77693,2573.7,2573.6,0.78278456]
[1748630563199,0.77692,2573.9,2573.8,0.77688]
[1748630564098,0.77692,2573.9,2573.8,2.02018]
[1748630564991,0.77692,2573.9,2573.8,1.2433]
[1748630570203,0.7769,2573.8,2573.7,4.7122]
[1748630570397,0.7769,2573.8,2573.7,0.7746]
[1748630570597,0.77693,2573.7,2573.6,0.00582456]
[1748630570798,1.50103,2573.7,2573.6,0.00582456]
[1748630575609,0.77693,2573.7,2573.6,0.00582456]
[1748630575908,0.77693,2573.7,2573.6,1.24822456]
[1748630576902,0.77693,2573.7,2573.6,0.00582456]
[1748630579404,0.77693,2573.7,2573.6,0.78278456]
[1748630579708,0.77693,2573.8,2573.7,0.77688]
[1748630579919,0.77693,2573.7,2573.6,2.05047456]
[1748630580099,0.77693,2573.7,2573.6,5.25827456]
[1748630581215,0.77693,2573.7,2573.6,4.48132456]
[1748630581606,0.77693,2573.7,2573.6,3.21362456]
[1748630584212,0.77693,2573.7,2573.6,0.00582456]
[1748630584414,3.98473,2573.7,2573.6,0.00582456]
[1748630584913,5.31113,2573.7,2573.6,0.00582456]
[1748630585809,2.10333,2573.7,2573.6,0.00582456]
[1748630586207,5.31113,2573.7,2573.6,0.00582456]
[1748630587420,6.32254417,2573.7,2573.6,0.00582456]
[1748630588111,3.11474417,2573.7,2573.6,0.00582456]
[1748630588818,2.10333,2573.7,2573.6,0.00582456]
[1748630589509,0.77693,2573.7,2573.6,0.00582456]
[1748630595831,0.7266,2574.0,2573.6,3.21362456]
[1748630596130,0.77693,2573.8,2573.7,2.07463]
[1748630596433,0.77693,2573.8,2573.7,2.0671]
[1748630598826,0.77693,2573.8,2573.7,0.7694]
[1748630599037,0.77693,2573.7,2573.6,0.00582456]
[1748630603931,3.98473,2573.7,2573.6,0.00582456]
[1748630604129,13.09173,2573.7,2573.6,4.56e-06]
[1748630604327,0.7772,2572.8,2572.7,3.77685206]
[1748630604532,0.77726,2572.6,2572.5,2.0391]
[1748630606429,0.77726,2572.6,2572.5,2.8164]
[1748630606832,0.77726,2572.6,2572.5,2.0391]
[1748630607231,0.97146,2572.6,2572.5,2.0391]
[1748630607735,0.97146,2572.6,2572.5,2.8164]
[1748630607932,8.402,2572.6,2572.0,3.2078]
[1748630608233,8.402,2572.6,2571.1,5.25026892]
[1748630608234,0.77763,2571.4,2571.1,5.25026892]
[1748630608432,3.98543,2571.4,2571.1,5.25026892]
[1748630608933,3.98543,2571.4,2571.1,5.25609348]
[1748630609331,0.77763,2571.4,2571.1,5.25609348]
[1748630609532,0.77763,2571.4,2571.2,0.7309]
[1748630609734,0.77763,2571.4,2571.3,5.08095952]
[1748630610139,0.77763,2571.4,2571.3,1.2995]
[1748630611527,0.77766,2571.3,2571.2,1.4798]
[1748630613031,0.77766,2571.3,2571.1,0.00582456]
[1748630613032,0.77769,2571.2,2571.1,0.00582456]
[1748630613233,2.01469,2571.2,2571.1,0.00582456]
[1748630613639,2.01469,2571.2,2571.1,4.56e-06]
[1748630615231,7.01469,2571.2,2571.1,4.56e-06]
[1748630615539,6.12369,2571.2,2571.1,4.56e-06]
[1748630618737,6.12369,2571.2,2570.0,1.94511]
[1748630618738,10.346,2571.2,2569.8,3.2078]
[1748630619033,3.98573,2570.4,2570.3,2.0452]
[1748630620243,0.77825,2569.4,2569.3,0.77823]
[1748630620635,0.77823,2569.5,2569.4,0.77821]
[1748630621134,0.77823,2569.5,2569.4,5.77821]
[1748630621339,0.77819,2569.6,2569.5,0.77818]
[1748630621735,0.77819,2569.6,2569.5,5.0]
[1748630622141,0.77823,2569.4,2569.3,4.111]
[1748630622340,0.77826,2569.3,2569.2,3.99189601]
[1748630622537,0.77826,2569.3,2569.2,8.10289601]
[1748630622734,0.77826,2569.4,2569.3,0.77824]
[1748630623135,0.77826,2569.4,2569.3,5.77824]
[1748630623340,0.77826,2569.4,2569.3,7.04744]
[1748630624642,0.78399601,2569.7,2569.6,0.77817]
[1748630624838,0.77819,2569.6,2569.5,0.77817]
[1748630625039,0.77822,2569.5,2569.4,0.77821]
[1748630625240,0.77822,2569.5,2569.4,1.52581]
[1748630625542,0.77822,2569.5,2569.4,6.52581]
[1748630625943,0.97272,2569.5,2569.4,6.52581]
[1748630626342,0.1945,2569.5,2569.4,6.52581]
[1748630626848,0.77802,2570.2,2569.4,5.7476]
[1748630627141,5.15241,2570.7,2570.0,1.94511]
[1748630627340,0.7779,2570.5,2570.4,0.77791]
[1748630627538,0.77789,2570.6,2570.5,0.77786]
[1748630628645,0.77793,2570.5,2570.4,0.77791]
[1748630629049,0.77793,2570.4,2570.3,2.10347601]
[1748630629442,0.77793,2570.4,2570.3,7.10347601]
[1748630630149,0.1943,2570.5,2570.4,0.77793]
[1748630630350,0.1943,2570.5,2570.4,2.08623]
[1748630630644,0.9722,2570.5,2570.4,2.08623]
[1748630631846,0.1943,2570.5,2570.4,2.08623]
[1748630632047,0.1943,2570.5,2570.4,7.08623]
[1748630632346,0.1943,2570.5,2570.4,10.29403]
[1748630633641,0.00583601,2570.8,2570.7,0.77784]
[1748630633946,0.00583601,2570.8,2570.7,8.09764]
[1748630634142,2.01125,2571.4,2571.3,0.77766]
[1748630634441,0.77762,2571.5,2571.4,0.7776]
[1748630634743,1.2336,2571.7,2571.5,0.77757]
[1748630634946,3.2078,2571.9,2571.3,3.2078]
[1748630634947,0.77762,2571.5,2571.4,0.77759]
[1748630635140,0.77762,2571.5,2571.4,2.05499]
[1748630636737,0.77759,2571.6,2571.5,0.77757]
[1748630636947,0.78338601,2571.7,2571.6,0.77757]
[1748630637246,0.00583601,2571.7,2571.6,3.98537]
[1748630637451,0.00583601,2571.7,2571.6,10.25987]
[1748630637843,0.78337601,2571.7,2571.6,10.25987]
[1748630638346,0.00583601,2571.7,2571.6,5.25987]
[1748630638742,0.00583601,2571.7,2571.6,10.25987]
[1748630639246,0.77738,2572.3,2572.2,0.77737]
[1748630639650,0.77739,2572.2,2572.1,4.8814]
[1748630640050,0.77738,2572.3,2572.2,0.77736]
[1748630640254,0.77739,2572.2,2572.1,4.8814]
[1748630640757,0.77737,2572.3,2572.2,0.77736]
[1748630641049,0.77739,2572.2,2572.1,6.1917]
[1748630642752,0.77739,2572.2,2572.1,4.8814]
[1748630642945,0.77742,2572.1,2572.0,0.00583601]
[1748630643151,2.07692,2572.1,2572.0,0.00583601]
[1748630647351,0.77754,2571.7,2571.6,4.103]
[1748630648244,0.77757,2571.6,2571.5,0.77759]
[1748630648449,0.7776,2571.5,2571.4,3.99124601]
[1748630648851,0.7776,2571.5,2571.4,3.21363601]
[1748630649052,1.5574,2571.5,2571.4,3.21363601]
[1748630649249,0.7776,2571.5,2571.4,3.21363601]
[1748630649554,0.7776,2571.5,2571.4,3.99126601]
[1748630649743,0.7776,2571.5,2571.4,3.21363601]
[1748630649949,0.7776,2571.5,2571.4,3.99126601]
[1748630650254,0.7776,2571.5,2571.4,3.21363601]
[1748630650447,0.7776,2571.5,2571.4,0.00583601]
[1748630650653,0.7776,2571.5,2571.4,0.78346601]
[1748630651154,0.7776,2571.5,2571.4,0.00583601]
[1748630652455,0.7776,2571.5,2571.4,0.78346601]
[1748630652758,0.7776,2571.5,2571.4,0.00583601]
[1748630653756,2.111,2571.5,2571.4,0.78346601]
[1748630653958,2.111,2571.5,2571.4,0.00583601]
[1748630655361,2.111,2571.5,2571.4,0.78346601]
[1748630656162,2.111,2571.5,2571.4,0.00583601]
[1748630656469,2.111,2571.5,2571.4,0.78346601]
[1748630658557,1.3334,2571.5,2571.4,0.78346601]
[1748630659866,2.111,2571.5,2571.4,0.78346601]
[1748630661364,0.7776,2571.6,2571.5,0.77757]
[1748630661564,2.1299,2571.6,2571.5,0.77757]
[1748630664765,0.7776,2571.5,2571.4,0.78345601]
[1748630664969,2.1131,2571.5,2571.4,0.78345601]
[1748630666068,2.1131,2571.5,2571.4,0.00583601]
[1748630666266,0.77772,2571.1,2571.0,3.2078]
[1748630667671,2.05661,2571.2,2571.1,0.77772]
[1748630668371,0.77772,2571.1,2571.0,8.08253]
[1748630668771,0.77772,2571.1,2571.0,3.98553]
[1748630668966,0.77778,2570.9,2570.8,0.00583601]
[1748630669568,4.75278,2570.9,2570.8,0.00583601]
[1748630671873,12.864,2570.9,2569.7,4.097]
[1748630672171,0.77804,2570.1,2570.0,0.77803]
[1748630673268,3.2078,2570.7,2570.0,6.94511]
[1748630673469,0.77794,2570.4,2570.3,0.77794]
[1748630673667,4.5415,2570.7,2570.3,2.09374]
[1748630674069,0.77796,2570.3,2570.2,3.98577]
[1748630676384,0.77796,2570.3,2570.2,3.2078]
[1748630676777,0.77796,2570.3,2569.9,3.2078]
[1748630676778,1.94491,2570.3,2569.9,3.2078]
[1748630677081,0.77805,2570.0,2569.9,4.098]
[1748630677681,0.77805,2570.0,2569.9,7.3058]
[1748630677882,0.77808,2569.9,2569.8,0.78394601]
[1748630678178,2.11318,2569.9,2569.8,4.88194601]
[1748630678380,2.11318,2569.9,2569.8,4.10383601]
[1748630678772,2.11318,2569.9,2569.8,4.88194601]
[1748630678976,0.77808,2569.9,2569.8,4.88194601]
[1748630679180,0.77808,2569.9,2569.8,6.23554601]
[1748630679677,0.77802,2570.1,2570.0,0.77803]
[1748630679887,0.77801,2570.2,2570.1,0.77802]
[1748630680581,0.77805,2570.0,2569.9,3.98585]
[1748630680883,0.77803,2570.1,2570.0,0.77801]
[1748630681080,0.77803,2570.1,2570.0,2.13161]
[1748630681783,0.77801,2570.2,2570.1,0.77799]
[1748630682086,0.77801,2570.2,2570.1,4.87599]
[1748630683491,2.02429,2570.3,2570.2,0.77799]
[1748630684290,0.7404,2570.6,2570.2,3.9627]
[1748630684480,0.77793,2570.5,2570.4,0.7779]
[1748630684989,0.77793,2570.4,2570.3,0.732]
[1748630685189,2.02553,2570.4,2570.3,1.50996]
[1748630685387,2.02553,2570.4,2570.3,0.732]
[1748630687193,2.02553,2570.4,2570.3,1.50996]
[1748630687395,2.02553,2570.4,2570.3,0.732]
[1748630688986,2.02553,2570.4,2570.3,1.50996]
[1748630689294,2.02553,2570.4,2570.3,0.732]
[1748630689794,2.02553,2570.4,2570.3,1.50996]
[1748630690591,0.77793,2570.4,2570.3,1.50996]
[1748630691688,1.3161,2570.6,2570.5,0.7779]
[1748630691996,0.77784,2570.8,2570.7,0.7778]
[1748630694189,0.77779,2570.9,2570.8,0.77778]
[1748630694498,0.77779,2570.9,2570.8,4.87578]
[1748630698201,1.94455,2570.8,2570.4,3.01817199]
[1748630698404,0.7779,2570.5,2570.4,7.10917199]
[1748630698902,0.7779,2570.5,2570.4,4.091]
[1748630700197,0.7779,2570.5,2570.4,4.86893]
[1748630700403,1.3029,2570.6,2570.5,0.7779]
[1748630700596,2.08077,2570.6,2570.4,4.091]
[1748630700800,0.7779,2570.5,2570.4,4.091]
[1748630701002,2.0248,2570.5,2570.4,4.091]
[1748630701907,0.77796,2570.3,2570.2,3.98577]
[1748630702109,0.77796,2570.3,2570.2,8.07677]
[1748630702404,0.7755,2570.4,2570.2,8.07677]
[1748630702405,1.55345,2570.4,2570.3,0.77796]
[1748630702909,0.77796,2570.3,2570.2,8.07677]
[1748630703111,0.7755,2570.4,2570.3,0.77796]
[1748630703310,0.77789,2570.6,2570.5,0.7779]
[1748630703512,0.77793,2570.5,2570.4,0.77791]
[1748630704314,0.77789,2570.6,2570.5,0.77786]
[1748630704609,0.77789,2570.6,2570.5,4.86886]
[1748630705012,0.77789,2570.6,2570.5,4.091]
[1748630705312,0.77789,2570.6,2570.5,4.8689]
[1748630705711,3.2078,2570.8,2570.5,4.091]
[1748630706009,2.29948,2571.0,2570.8,0.7778]
[1748630706211,2.29945,2571.0,2570.9,4.091]
[1748630706710,2.29945,2571.0,2570.9,4.86878]
[1748630707412,0.7399,2571.0,2570.9,4.86878]
[1748630707813,0.00583601,2571.1,2571.0,0.77775]
[1748630708013,0.00583601,2571.1,2571.0,1.55345]
[1748630708914,0.78355601,2571.1,2571.0,1.55345]
[1748630709416,0.00583601,2571.1,2571.0,1.55345]
[1748630710414,0.00583601,2571.1,2571.0,2.83215]
[1748630712322,0.7776,2571.6,2571.5,0.77759]
[1748630712520,0.7776,2571.6,2571.5,4.86759]
[1748630712720,1.4988,2571.6,2571.5,4.09]
[1748630714512,1.4988,2571.6,2571.5,4.8676]
[1748630716218,1.4988,2571.6,2571.5,4.09]
[1748630717623,4.7066,2571.6,2571.5,4.09]
[1748630718122,1.4988,2571.6,2571.5,4.09]
[1748630718323,1.4988,2571.6,2571.5,4.8676]
[1748630718822,1.4988,2571.6,2571.5,4.09]
[1748630722327,2.8487,2571.6,2571.5,4.09]
[1748630723025,2.8487,2571.6,2571.3,3.21363601]
[1748630723229,0.77763,2571.4,2571.3,0.00583601]
[1748630723728,2.12753,2571.4,2571.3,0.00583601]
[1748630724429,2.12753,2571.4,2571.3,0.78349601]
[1748630724630,2.12753,2571.4,2571.3,0.00583601]
[1748630727327,2.12753,2571.4,2571.3,0.78349601]
[1748630727525,0.77761,2571.5,2571.4,0.7776]
[1748630728429,1.9432,2572.6,2571.4,23.278]
[1748630728636,2.0616,2572.5,2572.4,0.77733]
[1748630728929,2.0616,2572.5,2572.4,3.98513]
[1748630729138,2.8389,2572.5,2572.4,3.98513]
[1748630729330,2.0616,2572.5,2572.4,3.98513]
[1748630729635,2.8389,2572.5,2572.4,3.98513]
[1748630730027,2.8389,2572.5,2572.4,3.2078]
[1748630730431,2.0616,2572.5,2572.4,3.98513]
[1748630732035,0.00583601,2572.7,2572.6,0.77727]
[1748630734242,0.77729,2572.6,2572.5,4.08]
[1748630734433,0.77729,2572.6,2572.5,4.8573]
[1748630735741,0.77729,2572.6,2572.5,4.08]
[1748630736243,0.77729,2572.6,2572.5,4.8573]
[1748630736536,0.77729,2572.6,2572.5,0.7773]
[1748630736841,0.77729,2572.6,2572.5,4.08]
[1748630737247,0.77729,2572.6,2572.5,4.8573]
[1748630737642,0.00583601,2572.7,2572.6,0.77727]
[1748630738144,2.74307,2573.3,2573.2,0.77709]
[1748630738447,0.77705,2573.3,2573.2,4.85706]
[1748630738741,0.77705,2573.3,2573.2,4.08]
[1748630739532,0.77705,2573.3,2573.2,4.85709]
[1748630740845,0.77705,2573.3,2573.2,4.08]
[1748630741543,2.04334,2573.4,2573.2,4.08]
[1748630741746,0.73343601,2573.5,2573.4,0.77702]
[1748630741747,0.78283601,2573.5,2573.4,0.77702]
[1748630741942,0.78283601,2573.5,2573.4,3.98482]
[1748630742449,2.06413601,2573.5,2573.4,3.98482]
[1748630742648,2.06413601,2573.5,2573.4,3.2078]
[1748630747260,0.77702,2573.4,2573.3,4.079]
[1748630747552,2.11822,2573.4,2573.3,4.079]
[1748630748153,1.3412,2573.4,2573.1,3.98489]
[1748630748353,0.77705,2573.3,2573.2,4.079]
[1748630748759,0.77704,2573.4,2573.3,0.77705]
[1748630749258,0.78285601,2573.5,2573.4,0.77702]
[1748630749752,0.77702,2573.4,2573.3,2.08863]
[1748630750857,0.77702,2573.4,2573.3,1.3116]
[1748630751059,0.77705,2573.3,2573.2,4.85607]
[1748630754664,0.77705,2573.3,2573.2,8.06387]
[1748630756164,0.77705,2573.3,2573.2,8.06287]
[1748630756360,0.77705,2573.3,2573.2,3.2078]
[1748630756565,0.77705,2573.3,2573.2,7.2858]
[1748630757167,0.77705,2573.3,2573.2,8.06289]
[1748630759164,0.77705,2573.3,2573.2,7.2858]
[1748630759365,0.77705,2573.3,2573.2,8.06289]
[1748630759664,0.77705,2573.3,2573.2,7.2858]
[1748630760270,0.77705,2573.3,2573.2,8.06289]
[1748630760869,0.77705,2573.3,2573.2,7.2858]
[1748630762370,0.77705,2573.3,2573.2,8.06289]
[1748630762571,0.77705,2573.3,2573.2,7.2858]
[1748630762771,0.77705,2573.3,2573.2,8.06289]
[1748630763174,0.77705,2573.3,2573.2,7.2858]
[1748630763473,0.77705,2573.3,2573.2,8.06289]
[1748630764072,0.77705,2573.4,2573.3,0.77702]
[1748630764367,2.04465,2573.4,2573.3,0.77702]
[1748630764671,0.00583601,2573.5,2573.4,0.77702]
[1748630764872,0.78284601,2573.5,2573.4,0.77702]
[1748630765768,2.05044601,2573.5,2573.4,0.77702]
[1748630766278,0.77705,2573.4,2573.3,0.77703]
[1748630766473,2.04465,2573.4,2573.3,0.77703]
[1748630766673,0.77705,2573.3,2573.2,9.3625]
[1748630766872,0.77705,2573.3,2573.2,10.13958]
[1748630767075,0.77705,2573.3,2573.2,8.80588]
[1748630768377,0.77705,2573.3,2573.2,4.72788]
[1748630768580,0.77705,2573.3,2573.2,7.2798]
[1748630769472,0.77705,2573.3,2573.2,3.2078]
[1748630769879,0.77705,2573.3,2573.2,7.2798]
[1748630770575,0.77705,2573.3,2573.2,4.072]
[1748630771278,0.77708,2573.2,2573.1,0.77711]
[1748630771467,1.54838,2573.2,2573.1,4.84911]
[1748630773380,0.7713,2573.2,2573.1,4.84911]
[1748630773670,1.54838,2573.2,2573.1,4.84911]
[1748630773875,1.54838,2573.2,2573.1,4.072]
[1748630774573,2.81038,2573.2,2573.1,4.072]
[1748630774979,0.77712,2573.1,2573.0,0.00583601]
[1748630775182,2.03912,2573.1,2573.0,0.00583601]
[1748630775377,7.03912,2573.1,2573.0,0.00583601]
[1748630775578,2.03912,2573.1,2573.0,0.00583601]
[1748630777077,3.2078,2573.3,2573.2,0.77709]
[1748630777276,2.0686,2573.4,2573.0,3.21363601]
[1748630777476,2.0686,2573.4,2573.1,0.77712]
[1748630777477,1.3067,2573.2,2573.1,0.77712]
[1748630777677,1.5005,2573.2,2573.1,0.77712]
[1748630779485,1.5005,2573.2,2573.1,4.84912]
[1748630782187,0.1938,2573.2,2573.1,4.84912]
[1748630783083,0.1938,2573.2,2573.1,6.07382]
[1748630784185,0.1938,2573.2,2573.1,4.84912]
[1748630784386,1.4932,2573.2,2573.1,4.84912]
[1748630787384,2.27029,2573.2,2573.1,4.072]
[1748630788186,5.47809,2573.2,2573.1,4.072]
[1748630788391,0.77712,2573.1,2573.0,0.00583601]
[1748630788681,2.79382,2573.1,2573.0,0.00583601]
[1748630788889,7.79382,2573.1,2573.0,0.00583601]
[1748630794095,2.05402,2573.1,2573.0,3.99078601]
[1748630794594,0.9709,2573.2,2573.1,0.77712]
[1748630795990,0.1938,2573.2,2573.1,0.77712]
[1748630796190,0.1938,2573.2,2573.1,2.83252]
[1748630796391,0.97089,2573.2,2573.1,2.83252]
[1748630796697,0.1938,2573.2,2573.1,2.83252]
[1748630796893,0.97089,2573.2,2573.1,2.83252]
[1748630797194,0.1938,2573.2,2573.1,2.83252]
[1748630797397,0.97089,2573.2,2573.1,2.83252]